Cogmind - Beta 16 @@@ ROGUE MODE // 2025.11.23 @ 22:54:06 Player: opdo Result: Destroyed by IU-PSJ(R) with Subdweller Machine Gun Performance ------------- Evolutions (0) 0 Regions Visited (3) 600 Robots Destroyed (34) 170 Value Destroyed (685) 685 Prototype IDs (12) 240 Alien Tech Used (0) 0 Bonus (-10) -10 TOTAL SCORE: 1685 Bonus ------- Follower Combat Kills 37 Friendly Fire -47 Cogmind --------- Core Integrity 0/250 Matter 264/300 Energy 65/100 System Corruption 0% Temperature Cool (0) Movement Core (450) Ox8 Location -10/Subcaves Parts ------- > --- POWER (1) -------- (None) > --- PROPULSION (2) --- (None) > --- UTILITY (2) ------ Large Storage Unit Targeting Computer > --- WEAPON (2) ------- Makeshift Laser Battle Cannon > --- INVENTORY (15) --- Light Treads Light Treads Light Treads Light Treads Subdweller Monowheel High-capacity Matter Pod (146) Experimental Sensor Array Medium Armor Plating Medium Armor Plating Subdweller Beam Cannon Powered Cannon Light Assault Rifle Mini Grenade Launcher Mining Laser Peak State ------------ > --- POWER ------------ Light Angular Momentum Engine > --- PROPULSION ------- Light Treads Light Treads > --- UTILITY ---------- Large Storage Unit Targeting Computer > --- WEAPON ----------- Makeshift Laser Battle Cannon > --- INVENTORY -------- Light Treads Light Treads Light Treads Light Treads Subdweller Monowheel High-capacity Matter Pod Experimental Sensor Array Medium Armor Plating Medium Armor Plating Subdweller Beam Cannon Powered Cannon Light Assault Rifle Mini Grenade Launcher Mining Laser [Rating: 19] Favorites ----------- Power Improved Ion Engine Engine Improved Ion Engine Power Core Light Nuclear Core Propulsion Light Treads Treads Light Treads Utility Targeting Computer Storage Large Storage Unit Processor Targeting Computer Weapon Assault Rifle Energy Gun Makeshift Laser Ballistic Gun Assault Rifle Ballistic Cannon Battle Cannon Launcher Mini Grenade Launcher Special Weapon Mining Laser Build | -11 -10 -10 -10 ------- Run | Yrd Mat Min Sub Slots Evolved . | . . . . Power . | . . . . Propulsion . | . . . . Utility . | . . . . Weapon . | . . . . Parts Attached 20 | 7 5 5 3 Power 6 | 2 1 2 1 Engine 5 | 2 1 1 1 Core 1 | . . 1 . Reactor . | . . . . Propulsion 5 | 2 1 2 . Treads 5 | 2 1 2 . Leg . | . . . . Wheel . | . . . . Hover . | . . . . Flight . | . . . . Utility 3 | 1 2 . . Device . | . . . . Storage 2 | 1 1 . . Processor 1 | . 1 . . Hackware . | . . . . Protection . | . . . . Artifact . | . . . . Weapon 6 | 2 1 1 2 Energy Gun 1 | . . . 1 Energy Cannon . | . . . . Ballistic Gun 2 | 2 . . . Ballistic Cannon 1 | . . . 1 Launcher 1 | . 1 . . Special Weapon 1 | . . 1 . Impact Weapon . | . . . . Slashing Weapon . | . . . . Piercing Weapon . | . . . . Special Melee Weapon . | . . . . Unidentified Prototypes . | . . . . Parts Lost 5 | . . 1 4 Power 3 | . . 1 2 Propulsion 2 | . . . 2 Utility . | . . . . Weapon . | . . . . Highest Loss Streak 3 | . . 1 3 To Critical Strikes . | . . . . Average Backups 13 | 2 13 14 14 Power 1 | . 1 . . Propulsion 5 | 1 4 5 5 Utility 3 | . 3 3 4 Weapon 4 | . 3 4 5 Tool/Special . | . . . . Unused Backups 23 | . 6 2 15 Power . | . . . . Propulsion 10 | . 4 . 6 Utility 7 | . 2 1 4 Weapon 6 | . . 1 5 Tool/Special . | . . . . Average Slot Usage (%) 98 | . 99 99 93 Engine 11 | . 14 9 8 Core 1 | . . 3 . Treads 27 | . 28 28 27 Storage 14 | . 14 14 14 Processor 13 | . 13 14 14 Energy Gun 1 | . . . 5 Ballistic Gun 23 | . 27 26 10 Special Weapon 1 | . . 1 7 Peak Build Rating 19 | 6 10 11 19 Average Rating 9 | 5 9 9 11 On Entrance 6 | . 6 10 10 Avg Prop Armor Cover (%) . | . . . . Naked Turns . | . . . . Heaviest Build 34 | 14 31 31 34 Greatest Support 40 | 40 40 40 40 Greatest Overweight (x) . | . . . . Average Overweight (x) . | . . . . Largest Inventory Capacity 15 | 8 15 15 15 Average Capacity 14 | 7 14 15 15 Most Carried 15 | 5 15 15 15 Average Carried 13 | 2 13 14 14 Final Capacity 15 | 8 15 15 15 Final Carried 15 | 5 15 15 15 Class Distribution -------------------- 100% | Mutant Dominant Class ---------------- Mutant | -10/Materials Mutant | -10/Mines Mutant | -10/Subcaves Resources | -11 -10 -10 -10 ----------- Run | Yrd Mat Min Sub Matter Collected 1112 | 266 271 401 174 Remotely . | . . . . Salvage Created 771 | 60 271 306 134 Parts 49 | 4 15 26 4 Haulers Intercepted 1 | . 1 . . Recyclers Shooed 2 | 1 . 1 . Parts Field Recycled . | . . . . Retrieved Matter . | . . . . Parts Self-Destructed 5 | . . . 5 Prevented . | . . . . Parts Restored . | . . . . Kills | -11 -10 -10 -10 ------- Run | Yrd Mat Min Sub Combat Hostiles Destroyed 22 | . 7 9 6 Guns 15 | . 5 9 1 AOE 7 | . 2 . 5 Classes Destroyed 9 | 1 5 1 2 Builder 2 | . 1 1 . Tunneler 5 | 3 . 2 . Hauler 1 | . 1 . . Turret 2 | . . . 2 Watcher 3 | . 3 . . Swarmer 9 | . 3 3 3 Grunt 11 | . 4 5 2 Subdweller 1 | . . . 1 Assembled 1 | . . 1 . Best Kill Streak 5 | 3 4 4 5 Combat Bots Only 3 | . 2 3 3 Max Kills in Single Turn 3 | 2 2 2 3 Gunslinging . | . . . . Exploded 2 | . 2 . 2 Melee . | . . . . Uniques/NPCs Destroyed . | . . . . Combat | -11 -10 -10 -10 -------- Run | Yrd Mat Min Sub Hostile Shots Fired 141 | . 34 35 72 Missed 50 | . 11 7 32 Hits 91 | . 23 28 40 Projectile 91 | . 23 28 40 AOE 4 | . . . 4 Critical Strikes 1 | . 1 . . Damage Taken 1230 | . 232 329 669 Core 255 | . 22 66 167 Absorbed by Shields . | . . . . Core Remaining (%) 100 | 100 . . . Volleys Fired 88 | 5 32 28 23 Largest 2 | 2 2 2 2 Hottest 250 | 40 50 120 250 Shots Fired 168 | 10 64 53 41 Gun 139 | 10 62 47 20 Cannon 3 | . . . 3 Launcher 12 | . 2 2 8 Special 14 | . . 4 10 Kinetic 130 | 10 62 47 11 Thermal 26 | . . 4 22 Explosive 12 | . 2 2 8 Electromagnetic . | . . . . Robot Hit Streak 12 | 8 12 9 4 Robot Miss Streak 4 | 1 2 4 1 Penetration Max . | . . . . Secondary Targets . | . . . . Shots Hit Robots 91 | 9 44 24 14 Core Hits 54 | 3 16 18 17 Critical Kills . | . . . . Critical Parts Destroyed . | . . . . Critical Strikes 1 | . . . 1 Burn 1 | . . . 1 Melee Attacks . | . . . . Impact . | . . . . Slashing . | . . . . Piercing . | . . . . Sneak Attacks . | . . . . Combat Hostiles . | . . . . Follow-up Attacks . | . . . . Damage Inflicted 2196 | 131 752 488 825 Guns 1093 | 131 522 324 116 Cannons 46 | . . . 46 Explosions 1023 | . 226 134 663 Melee . | . . . . Ramming 34 | . 4 30 . Kinetic 1072 | 131 522 324 95 Thermal 67 | . . . 67 Explosive 1023 | . 226 134 663 Electromagnetic . | . . . . Impact . | . . . . Slashing . | . . . . Piercing . | . . . . Highest Corruption . | . . . . Average Corruption . | . . . . Corruption Purged . | . . . . Corruption Blocked . | . . . . Overload Shots 4 | . . . 4 Overflow Damage 16 | . 5 11 . Projectiles . | . . . . Explosions 16 | . 5 11 . Melee . | . . . . Knockbacks . | . . . . Impact . | . . . . Kinetic . | . . . . Secondary . | . . . . Self-Inflicted Damage 47 | . . 14 33 Shots 3 | . . 2 1 Rammed 8 | . 2 6 . Targets Rammed 9 | . 2 7 . Kicked . | . . . . Crushed 1 | . . 1 . Highest Temperature 32 | . . 32 25 Average Temperature 12 | . . 12 13 Received Heat Transfer 372 | . 102 96 174 Siege Activations . | . . . . Martial Activations . | . . . . Shielding Activations . | . . . . Robots Disrupted . | . . . . Combat Hostiles . | . . . . Robots Corrupted . | . . . . Combat Hostiles . | . . . . Parts Fried . | . . . . Impact Corruptions . | . . . . Robots Melted . | . . . . Combat Hostiles . | . . . . Parts Melted . | . . . . Heat Transferred 198 | . . . 198 Parts Sabotaged . | . . . . Parts Stolen . | . . . . Parts Stripped . | . . . . Power Chain Reactions . | . . . . Alert | -11 -10 -10 -10 ------- Run | Yrd Mat Min Sub Maximum Alert Level . | . . . . Low Security (%) 100 | 100 100 100 . Level 1 . | . . . . Level 2 . | . . . . Level 3 . | . . . . Level 4 . | . . . . Level 5 . | . . . . High Security . | . . . . Max Security . | . . . . Peak Influence 96 | 15 76 96 . Initial . | . . . . Average 13 | 2 8 20 . Influence Increases 702 | 15 246 268 173 Destroy 0b10 Robot/C 480 | . 140 200 140 Destroy 0b10 Robot/NC 55 | 15 25 15 . Destroy Leader 68 | . 38 20 10 Allied During Kill 10 | . . 2 8 Successful Hack 28 | . 28 . . Destroy Structure 31 | . 15 16 . Lose Combat Pursuer 30 | . . 15 15 Influence Decreases 702 | 15 246 268 173 Time Decay 662 | 15 246 238 163 Lost Part 20 | . . 10 10 Lost Ally 20 | . . 20 . Squads Dispatched 2 | . 2 . . Investigation 2 | . 2 . . Extermination . | . . . . Reinforcement . | . . . . Assault . | . . . . Garrison . | . . . . Intercept . | . . . . Searches Triggered . | . . . . Construction Impeded . | . . . . Haulers Reinforced . | . . . . Active Scanning Responses . | . . . . Cargo Convoy Interrupts . | . . . . Stealth | -11 -10 -10 -10 --------- Run | Yrd Mat Min Sub Distress Signals 2 | . 2 . . Communications Jammed . | . . . . Distress Signals . | . . . . Times Spotted 43 | . 17 12 14 Peak Tracking Total 6 | . 4 3 6 Tactical Retreats 2 | . . 1 1 Traps | -11 -10 -10 -10 ------- Run | Yrd Mat Min Sub Traps Triggered 2 | . 2 . . Indirectly . | . . . . Trap Hack Attempts . | . . . . Triggered . | . . . . Disarmed . | . . . . Reprogrammed . | . . . . Reused . | . . . . Traps Extracted . | . . . . Installed . | . . . . Triggered . | . . . . Machines | -11 -10 -10 -10 ---------- Run | Yrd Mat Min Sub Machines Disabled 4 | . . . 4 Max in Single Turn 2 | . . . 2 Machines Repaired . | . . . . Machines Dismantled . | . . . . Machines Sabotaged . | . . . . Overloaded Fab Kills . | . . . . Hacking | -11 -10 -10 -10 --------- Run | Yrd Mat Min Sub Machines Accessed 6 | . 5 . 1 Terminals 5 | . 5 . . Fabricators . | . . . . Repair Stations . | . . . . Recycling Units . | . . . . Scanalyzers . | . . . . Garrison Access . | . . . . Total Hacks 17 | . 16 . 1 Successful 11 | . 10 . 1 Failed 6 | . 6 . . Catastrophic . | . . . . Database Lockouts . | . . . . Manual 15 | . 15 . . Terminals 16 | . 16 . . Fabricators . | . . . . Repair Stations . | . . . . Recycling Units . | . . . . Scanalyzers . | . . . . Garrison Access . | . . . . Terminal Hacks 3 | . 2 . 1 Terminal Index 1 | . 1 . . Registered Components 1 | . 1 . . Proto ID Catalog 1 | . . . 1 Fabricator Hacks . | . . . . Repair Station Hacks . | . . . . Recycling Unit Hacks . | . . . . Scanalyzer . | . . . . Garrison Access Hacks . | . . . . Unauthorized Hacks 8 | . 8 . . Terminals 8 | . 8 . . Botnet 1 | . 1 . . Disrupt 1 | . 1 . . Operators 1 | . 1 . . Skim 5 | . 5 . . Fabricators . | . . . . Repair Stations . | . . . . Recycling Units . | . . . . Scanalyzers . | . . . . Garrison Access . | . . . . Data Cores Recovered . | . . . . Used . | . . . . Hacking Detections 5 | . 5 . . Full Trace Events . | . . . . Feedback Events . | . . . . Feedback Blocked . | . . . . Robot Schematics Acquired . | . . . . Robots Built . | . . . . Authchips . | . . . . Time . | . . . . Total Robot Build Rating . | . . . . Part Schematics Acquired . | . . . . Parts Built . | . . . . Authchips . | . . . . Time . | . . . . Total Part Build Rating . | . . . . Part Studies Acquired . | . . . . Parts Repaired . | . . . . Time . | . . . . Parts Recycled . | . . . . Recycled Matter . | . . . . Retrieved Matter . | . . . . Retrieved Components . | . . . . Parts Scanalyzed . | . . . . Part Schematics Acquired . | . . . . Parts Damaged . | . . . . Bothacking | -11 -10 -10 -10 ------------ Run | Yrd Mat Min Sub Used RIF Installer . | . . . . Robots Hacked . | . . . . Non-combat . | . . . . Combat . | . . . . Robot Hacks Applied . | . . . . Relay Couplers Released . | . . . . Fabnet Peak Effective % . | . . . . Robots Rewired . | . . . . Allies Hacked . | . . . . Hacks Repelled . | . . . . Allies | -11 -10 -10 -10 -------- Run | Yrd Mat Min Sub Total Allies 2 | . . 2 . Largest Group 2 | . . 2 1 Highest-Rated Group 46 | . . 46 31 Highest-Rated Ally 31 | . . 31 31 Total Orders . | . . . . Ally Attacks 23 | . . 13 10 Total Damage 190 | . . 44 146 Kills 3 | . . 2 1 Allies Corrupted . | . . . . Allies Melted . | . . . . Intel | -11 -10 -10 -10 ------- Run | Yrd Mat Min Sub Active Infowar (turns) . | . . . . Robot Analysis Total . | . . . . Derelict Logs Recovered 1 | . . 1 . Drone Launches . | . . . . Drone Recoveries . | . . . . Exploration | -11 -10 -10 -10 ------------- Run | Yrd Mat Min Sub Turns Passed 3242 | 128 1398 1087 629 Spaces Moved 1454 | 67 502 564 321 Core 7 | 7 . . . Treads 1447 | 60 502 564 321 Legs . | . . . . Wheels . | . . . . Hover . | . . . . Flight . | . . . . Fastest Speed 50 | 50 160 160 160 Average Speed 159 | 148 160 160 160 Slowest Speed 160 | 160 160 160 160 Overloaded Moves . | . . . . Propulsion Burnouts . | . . . . Robots Hopped . | . . . . Potential Cave-ins . | . . . . Cave-ins Triggered . | . . . . Exploration Rate (%) 48 | 5 69 95 24 Regions Visited 3 Branch Regions 2 Pre-discovered Areas . | . . . . Known Exits Taken 1 | . . 1 . Unknown Exits Taken 2 | 1 1 . . Scrap Searched 1 | . . 1 . Spaces Dug . | . . . . Terrain Destroyed 88 | . 17 26 45 Melee . | . . . . Projectile . | . . . . AOE 88 | . 17 26 45 Terrain Rammed . | . . . . Walls Destroyed . | . . . . Machines Disabled . | . . . . Actions | -11 -10 -10 -10 --------- Run | Yrd Mat Min Sub Total 2180 | 82 1039 684 375 Wait 543 | . 469 65 9 Move 1451 | 66 501 563 321 Hop . | . . . . Pick Up 32 | 4 18 5 5 Fast Attach 8 | 6 1 . 1 Attach 1 | . . 1 . Detach . | . . . . Swap 25 | 1 5 9 10 Drop 23 | . 11 6 6 Fire 88 | 5 32 28 23 Melee . | . . . . Ram . | . . . . Kick . | . . . . Crush 9 | . 2 7 . Escape Stasis . | . . . . Rewire . | . . . . Trap . | . . . . Miscellaneous . | . . . . Route ------- -11/Scrapyard -10/Materials (discovered 5 exits: *Mat x3 / [*Min] / Sub) -10/Mines (discovered 4 exits: *Mat x2 / *Exi / *Sub) -10/Subcaves (discovered 2 exits: Mat / [*Rec]) History --------- Turn | Location | Event 13 | -11/Scrapyard | Discovered new exit (range 16) 129 | -11/Scrapyard | Entered Materials 324 | -10/Materials | Build established: Mutant 378 | -10/Materials | Discovered new exit (range 6) 498 | -10/Materials | Discovered new exit (range 3) 864 | -10/Materials | Discovered new exit (range 16) 919 | -10/Materials | Learned Storage emergency access door positions 1000 | -10/Materials | Learned 4 Subcaves zone layouts 1072 | -10/Materials | Learned Storage non-interactive machine intel 1134 | -10/Materials | Learned Storage non-interactive machine intel 1184 | -10/Materials | Learned 4 Subcaves zone layouts 1226 | -10/Materials | Learned Storage security intel 1260 | -10/Materials | Learned 4 Recycling zone layouts 1305 | -10/Materials | Learned 2 Mines zone layouts 1361 | -10/Materials | Identified exit to Subcaves 1361 | -10/Materials | Identified exit to Materials 1429 | -10/Materials | Learned location of 1 exit from Recycling 1506 | -10/Materials | Learned 4 Recycling zone layouts 1527 | -10/Materials | Entered Mines 1528 | -10/Mines | Identified exit to Exiles 1567 | -10/Mines | Learned 4 Materials zone layouts 1687 | -10/Mines | Discovered exit to Materials (range 6) 1789 | -10/Mines | Joined a pair of Derelicts in attacking an 0b10 outpost 1841 | -10/Mines | Found a hidden stash of uninstalled traps 1896 | -10/Mines | Excavation squad dispatched 1896 | -10/Mines | A large section of the Mines collapsed 2173 | -10/Mines | Found a damaged Exp. Sensor Array with a note attached 2177 | -10/Mines | Found Prototype Device 2386 | -10/Mines | Deemed a non-threat by the Exiles lab entrance 2605 | -10/Mines | Discovered exit to Subcaves (range 6) 2614 | -10/Mines | Entered Subcaves 2614 | -10/Subcaves | Accompanied by 1 ally 2615 | -10/Subcaves | Approached by a straggling Scientist 2615 | -10/Subcaves | Identified exit to Materials 2619 | -10/Subcaves | Led the pair of lost Derelicts to an unsafe place 2765 | -10/Subcaves | A swath of the cavern ceiling suddenly collapsed 2784 | -10/Subcaves | Shifting Twisted Machinery released Sub. Monowheel 2785 | -10/Subcaves | Shifting Twisted Machinery released Lgt. Humpback 2786 | -10/Subcaves | Shifting Twisted Machinery released Mak. Laser 2823 | -10/Subcaves | Shifting Twisted Machinery released Battle Cannon 2970 | -10/Subcaves | Discovered new exit (range 12) 3107 | -10/Subcaves | Visited 4L-MR0's lab 3137 | -10/Subcaves | Found Powered Cannon 3236 | -10/Subcaves | Core integrity fell below 50% 3243 | -10/Subcaves | Destroyed by IU-PSJ(R) with Subdweller Machine Gun Last Messages --------------- Rainbow Chip VL-GR5's Exoskeleton "Deathgrip" Powered Cannon 03127_ Testing Chamber breached. 03131_ 4L-MR0 mumbles: "Who knows where that last prototype ended up, probably tossed aside somewhere as if it were useless junk..." 03136_ Dropped Assault Rifle. 03136_ Dropped Lgt. Assault Rifle. 03137_ Acquired Powered Cannon. 5W-IIC(c): "I think it's somewhere north of here" 03228_ 7F-AJS(g) destroyed. 03230_ 5W-IIC(c) destroyed. 03233_ Acquired Lgt. Angular Momentum Engine. 03235_ Acquired 44 matter. 03239_ Lgt. Treads destroyed. 03240_ 1X-AG9(R) suffers critical hit (Burn). 03241_ Lgt. Treads destroyed. 03241_ Lgt. Angular Momentum Engine destroyed. Map ----- +----------------------------------------------------+ | ?????????????????????????????????????????????????? | | ?????????????????????????????????????????????????? | | ?????????????????????????????????????????????????? | | #??????????????????#####?????????????????????????? | | #?????????##########"" ##????????????????????????? | | #?????????# [[ ""##" #????????????????????????? | | #?????????### #"" #????????????????????????? | | #?????????#"""X" " "#????????????????????????? | | #?????????#"""""""#""" "#????????????????????????? | | #?????????##########" ""#????????????????????????? | | #?????????#######?##"" #????????????????????????? | | ??????????#########"" ""#????????????????????????? | | ??????????#### # "##????????????????????????? | | ########??##### "#?##??????????????????????? | | # # ##?#### ##^ ### ##??????? $????????????? | | ###### <###### ##??????"????? #??????? | | ### " ### ##???? #?#? #??????? | | # ## #???# # # #???????? | | ###### ##### ### #???" < #????????? | | # #### #####??"R" "" "?????????? | | ### #### #### """" #????????? | | ## #### ;# " " #?????? | | #####??# "" ??????? | | ### ##??###### # " #### #" ???????? | | ##?# #??#"""## ! ""#???????????????? | | ???# "" ""####"" @ "##??????????????? | | ???#""""""""""""^ R """#?????????????? | | #?######"" "" " ## " ""#????????????? | | ###" #"#"##" " ?## "#### ????????????? | | " """"""""### ??## ##????????????????? | | # "#"""""### ???## #### ????????????????? | | ## #####"### ????# #???# ???????????????? | | ?# ##"#"""## ???? ???# # ?????????????? | | ?## """"" """" ??? R ??#########????????????? | | ## """"" "" ""?? ^ ??????????????????????? | | # "" ####"" ? ## #?????????????????????? | | ## #######??##" ###?#######?????????????????????? | | ?###?????????####????????????????????????????????? | | ?????????????????????????????????????????????????? | | ?????????????????????????????????????????????????? | | ?????????????????????????????????????????????????? | | ?????????????????????????????????????????????????? | | ?????????????????????????????????????????????????? | | ?????????????????????????????????????????????????? | | ?????????????????????????????????????????????????? | | ?????????????????????????????????????????????????? | | ?????????????????????????????????????????????????? | | ?????????????????????????????????????????????????? | | ?????????????????????????????????????????????????? | | ?????????????????????????????????????????????????? | +----------------------------------------------------+ Best States ------------- Heat Dissipation 25 Energy Generation 18 Energy Capacity 265 Matter Stores 300 Matter Capacity 300 Sight Range 16 Terrain Scan Density 10 Evasion (%) 40 Targeting Accuracy 5 Recoil Reduction 2 Item Schematics ----------------- None Robot Schematics ------------------ None Fabricated ------------ Nothing Repaired ---------- Nothing Studied --------- None Alien Tech Used ----------------- None Achievements -------------- None Challenges ------------ None Game ------ Seed BattleControlFalx Manual? 0 Play Time 00:15:41 Cumulative 128.9 hours Start 2025.11.23 @ 22:41:40 End 2025.11.23 @ 22:54:06 Sessions 1 Manual Loads 0 Difficulty Rogue Special Mode None Game No. 329 Rogue 327 Adventurer 2 Explorer 0 Win Type - Total 1 Types 1/0/0/0/0/0/0/0/0/0 Lore% 80 Gallery% 62 Achievement% 41 Wizard Run 0 Options --------- Layout 2 ASCII 0 Keyboard 0 Movement Numpad Keybinds 0 Fullscreen 2 Font 24/Smallcaps Map View 50x44 Zoom Use 0% Tactical HUD 1 Map Filters NONE Filters NONE Steam 1 RUN: 3f31affd-91b4-4aa1-8fa2-8c3aca283aa2